bitfinex/quotes_BTCUSD_20250124
["timestamp","ask_amount","ask_price","bid_price","bid_amount"]
[1737729772529,0.15799074,105780.0,105770.0,0.5705731]
[1737729772752,0.000798,105830.0,105800.0,0.17]
[1737729772955,0.000798,105830.0,105810.0,0.311763]
[1737729772956,0.19860908,105820.0,105810.0,0.311763]
[1737729773169,0.04568346,105820.0,105810.0,0.4423062]
[1737729773376,0.03235661,105820.0,105810.0,0.4423062]
[1737729773583,0.000798,105830.0,105820.0,0.25174977]
[1737729773794,0.000798,105830.0,105820.0,0.24143732]
[1737729774644,0.000798,105830.0,105820.0,0.00234003]
[1737729774862,0.080098,105830.0,105820.0,0.00234003]
[1737729775278,0.221834,105830.0,105820.0,0.00234003]
[1737729775483,0.080098,105830.0,105820.0,0.00234003]
[1737729775693,0.221834,105830.0,105820.0,0.00234003]
[1737729775988,0.141756,105820.0,105800.0,0.0009802]
[1737729776195,0.141756,105820.0,105790.0,0.00234003]
[1737729776196,0.22414729,105810.0,105790.0,0.00234003]
[1737729776402,0.22414729,105810.0,105770.0,0.33322903]
[1737729776403,0.141789,105800.0,105770.0,0.33322903]
[1737729776657,0.141776,105800.0,105790.0,0.0009858]
[1737729776851,0.141776,105800.0,105770.0,0.14415103]
[1737729776852,0.141791,105790.0,105770.0,0.14415103]
[1737729777058,0.28415029,105780.0,105770.0,0.00234003]
[1737729777258,0.045,105780.0,105770.0,0.00234003]
[1737729777465,0.186803,105780.0,105770.0,0.00234003]
[1737729777663,0.045,105780.0,105770.0,0.00234003]
[1737729778301,0.045,105780.0,105770.0,0.14415703]
[1737729778509,0.18694991,105780.0,105770.0,0.00234003]
[1737729778921,0.2842972,105780.0,105770.0,0.00234003]
[1737729779059,0.6624752,105780.0,105760.0,0.0009949]
[1737729779271,0.141817,105770.0,105760.0,0.0009949]
[1737729779477,0.00014691,105780.0,105770.0,0.141817]
[1737729780063,0.00014691,105780.0,105770.0,0.24150432]
[1737729780469,0.00014691,105780.0,105770.0,0.141817]
[1737729780991,0.00014691,105780.0,105770.0,0.1427624]
[1737729781275,0.00014691,105780.0,105770.0,0.14276232]
[1737729781433,0.00014691,105780.0,105770.0,0.14510235]
[1737729782052,0.00014691,105780.0,105770.0,0.24244964]
[1737729782253,0.00014691,105780.0,105770.0,0.24150432]
[1737729782461,0.00014691,105780.0,105770.0,0.26450432]
[1737729782621,9.1e-07,105780.0,105770.0,0.41450432]
[1737729782819,9.1e-07,105780.0,105770.0,0.52450409]
[1737729783240,0.000798,105830.0,105820.0,0.14175]
[1737729783450,0.00094507,105830.0,105820.0,0.14175]
[1737729783922,0.00094507,105830.0,105820.0,0.14269489]
[1737729784036,0.33726303,105850.0,105840.0,0.291723]
[1737729784241,0.33726303,105850.0,105840.0,0.38907029]
[1737729784445,0.33726303,105850.0,105840.0,0.23907029]
[1737729785219,0.33726303,105850.0,105840.0,0.141723]
[1737729785633,0.48281032,105850.0,105830.0,0.00234003]
[1737729785845,0.141723,105840.0,105830.0,0.00234003]
[1737729786047,0.67176832,105850.0,105830.0,0.33305403]
[1737729786048,1.00244332,105850.0,105830.0,0.33305403]
[1737729786264,0.141723,105840.0,105830.0,0.19132103]
[1737729786475,0.42803629,105840.0,105820.0,0.5206893]
[1737729786676,0.47529129,105840.0,105820.0,0.3317073]
[1737729786878,0.61702429,105840.0,105820.0,0.3317073]
[1737729787089,0.141736,105830.0,105820.0,0.0009813]
[1737729787505,0.141757,105820.0,105800.0,0.519815]
[1737729787715,0.23911529,105810.0,105800.0,0.00014707]
[1737729787931,0.24076115,105820.0,105810.0,0.141763]
[1737729787932,0.09734729,105820.0,105810.0,0.141763]
[1737729788125,0.407125,105830.0,105810.0,0.330769]
[1737729788333,0.50447229,105830.0,105820.0,0.14175]
[1737729788542,0.14175,105820.0,105800.0,0.37818907]
[1737729788746,0.09734729,105820.0,105810.0,0.189015]
[1737729788957,0.0764,105830.0,105810.0,0.378021]
[1737729789164,0.0764,105830.0,105820.0,0.14175]
[1737729789370,0.0764,105830.0,105820.0,0.142695]
[1737729790882,0.52717303,105850.0,105840.0,0.141723]
[1737729790883,0.46056303,105850.0,105840.0,0.141723]
[1737729791925,0.41236303,105850.0,105840.0,0.29266774]
[1737729792131,0.33726303,105850.0,105840.0,0.38907029]
[1737729792327,0.33726303,105850.0,105840.0,0.23907029]
[1737729792837,0.33726303,105850.0,105840.0,0.141723]
[1737729793019,0.33726303,105850.0,105830.0,0.52200203]
[1737729793233,0.66792403,105850.0,105830.0,0.52200203]
[1737729793435,0.09734729,105840.0,105830.0,0.141736]
[1737729793635,0.0751,105830.0,105820.0,0.0009891]
[1737729793840,0.0751,105830.0,105820.0,0.1427391]
[1737729794047,0.0751,105830.0,105820.0,0.14175]
[1737729794703,0.0751,105830.0,105820.0,0.23909729]
[1737729795131,0.0751,105830.0,105820.0,0.14175]
[1737729796410,0.0751,105830.0,105820.0,0.24004221]
[1737729796569,0.0751,105830.0,105820.0,0.23909729]
[1737729796831,0.07539779,105830.0,105820.0,0.23909729]
[1737729797154,0.00029779,105830.0,105820.0,0.23909729]
[1737729798105,0.00029779,105830.0,105820.0,0.14175]
[1737729798504,0.00029779,105830.0,105820.0,0.3900421]
[1737729798759,0.00029779,105830.0,105820.0,0.23909729]
[1737729799370,0.00029779,105830.0,105820.0,0.14175]
[1737729801936,0.461764,105820.0,105800.0,0.1427596]
[1737729802164,0.461764,105820.0,105810.0,0.141763]
[1737729802165,0.131,105820.0,105810.0,0.141763]
[1737729802359,0.0815,105820.0,105810.0,0.24145032]
[1737729802879,0.0815,105820.0,105810.0,0.14410303]
[1737729803092,0.0815,105820.0,105810.0,0.141763]
[1737729803300,0.0815,105820.0,105800.0,0.33192867]
[1737729803301,0.223257,105820.0,105800.0,0.33192867]
[1737729803505,0.22325,105820.0,105810.0,0.141763]
[1737729803708,0.50959829,105820.0,105800.0,0.51996607]
[1737729803887,0.17884729,105820.0,105800.0,0.33094007]
[1737729804091,0.0815,105820.0,105810.0,0.141763]
[1737729804295,0.17884729,105820.0,105810.0,0.141763]
[1737729804705,0.32059729,105820.0,105810.0,0.141763]
[1737729804918,0.50960129,105820.0,105800.0,0.33094007]
[1737729805123,0.17884729,105820.0,105800.0,0.51997507]
[1737729805329,0.17884729,105820.0,105810.0,0.141763]
[1737729805533,0.17888759,105820.0,105810.0,0.141763]
[1737729805743,0.0815403,105820.0,105810.0,0.14270809]
[1737729808101,0.0815403,105820.0,105810.0,0.24005538]
[1737729808298,0.0815403,105820.0,105810.0,0.23911029]
[1737729809742,0.0815403,105820.0,105810.0,0.141763]
[1737729809961,4.03e-05,105820.0,105810.0,0.26319696]
[1737729810161,4.03e-05,105820.0,105810.0,0.41225199]
[1737729810583,4.03e-05,105820.0,105810.0,0.38925199]
[1737729810782,4.03e-05,105820.0,105810.0,0.1419047]
[1737729810986,4.03e-05,105820.0,105810.0,0.14284967]
[1737729811179,4.03e-05,105820.0,105810.0,0.39019696]
[1737729811381,3e-07,105820.0,105810.0,0.41225199]
[1737729811583,9e-08,105830.0,105820.0,0.173]
[1737729811800,9e-08,105830.0,105820.0,0.55319097]
[1737729811998,0.26168312,105850.0,105840.0,0.314723]
[1737729812248,0.24278812,105850.0,105840.0,0.41441032]
[1737729813027,0.22389312,105850.0,105840.0,0.41441032]
[1737729813232,0.14831312,105850.0,105840.0,0.52441009]
[1737729813882,0.14486939,105850.0,105840.0,0.55676338]
[1737729814110,0.34205188,105880.0,105870.0,0.141683]
[1737729814331,0.34219892,105880.0,105870.0,0.44766794]
[1737729814649,0.34219892,105880.0,105870.0,0.44672361]
[1737729815221,0.34219892,105880.0,105870.0,0.54672361]
[1737729815433,0.34219892,105880.0,105870.0,0.44672361]
[1737729816439,0.34219892,105880.0,105870.0,0.29672361]
[1737729816677,0.34219892,105880.0,105870.0,0.29881005]
[1737729817001,0.34219892,105880.0,105870.0,0.27581005]
[1737729817243,0.34219892,105880.0,105870.0,0.24137032]
[1737729817704,0.34219892,105880.0,105870.0,0.14402303]
[1737729817705,0.42149892,105880.0,105870.0,0.14402303]
[1737729817929,0.42149892,105880.0,105870.0,0.24231486]
[1737729818135,0.42149892,105880.0,105870.0,0.24137032]
[1737729818351,0.34219892,105880.0,105870.0,0.26437032]
[1737729818808,0.34219892,105880.0,105870.0,0.4195252]
[1737729819023,0.34219892,105880.0,105870.0,0.39137032]
[1737729819253,0.34219892,105880.0,105870.0,0.4425252]
[1737729819894,0.34219892,105880.0,105870.0,0.51437032]
[1737729820112,0.34219892,105880.0,105870.0,0.41437032]
[1737729820563,0.34219892,105880.0,105870.0,0.4425252]
[1737729821210,0.34219892,105880.0,105870.0,0.47078409]
[1737729821666,0.34219892,105880.0,105870.0,0.4425252]
[1737729822049,0.34219892,105880.0,105870.0,0.24137032]
[1737729822257,0.3424965,105880.0,105870.0,0.42030119]
[1737729822468,0.3424965,105880.0,105870.0,0.44640566]
[1737729822959,0.3424965,105880.0,105870.0,0.41437032]
[1737729823783,0.00995575,105880.0,105870.0,0.26437032]
[1737729824014,0.00995575,105880.0,105870.0,0.24137032]
[1737729824267,0.00995575,105880.0,105870.0,0.26437032]
[1737729825703,0.23562968,105870.0,105860.0,0.58993108]
[1737729825928,0.23562968,105870.0,105860.0,0.68727837]
[1737729826533,0.23562968,105870.0,105860.0,0.69727814]
[1737729826735,0.19784768,105870.0,105860.0,0.68727837]
[1737729827034,0.03248951,105870.0,105860.0,0.61727814]
[1737729827237,5.1e-07,105870.0,105860.0,0.71727814]
[1737729827413,5.1e-07,105870.0,105860.0,0.43727837]
[1737729827612,5.1e-07,105870.0,105860.0,0.64316705]
[1737729827813,5.1e-07,105870.0,105860.0,0.79316705]
[1737729828068,5.1e-07,105870.0,105860.0,0.67016705]
[1737729828279,5.1e-07,105870.0,105860.0,0.52016705]
[1737729828869,5.1e-07,105870.0,105860.0,0.67016705]
[1737729829077,5.1e-07,105870.0,105860.0,0.80316682]
[1737729829316,5.1e-07,105870.0,105860.0,0.82316682]
[1737729829486,5.1e-07,105870.0,105860.0,0.81316705]
[1737729829826,5.1e-07,105870.0,105860.0,0.73027837]
[1737729830032,5.1e-07,105870.0,105860.0,0.63027837]
[1737729830674,5.1e-07,105870.0,105860.0,0.61027837]
[1737729830874,0.00995575,105880.0,105870.0,0.14558249]
[1737729831085,0.00995575,105880.0,105870.0,0.41687406]
[1737729831278,0.00995575,105880.0,105870.0,0.41592978]
[1737729831488,7.5e-07,105880.0,105870.0,0.44827201]
[1737729831688,0.00029779,105890.0,105880.0,0.45129005]
[1737729831689,5.4e-07,105890.0,105880.0,0.45129005]
[1737729831902,4.9e-07,105890.0,105880.0,0.52201606]
[1737729832109,4.9e-07,105890.0,105880.0,0.51201629]
[1737729832647,4.9e-07,105890.0,105880.0,0.41201629]
[1737729833688,4.9e-07,105890.0,105880.0,0.38901629]
[1737729834319,4.9e-07,105890.0,105880.0,0.49901606]
[1737729834501,4.9e-07,105890.0,105880.0,0.38901629]
[1737729834756,4.9e-07,105890.0,105880.0,0.49901606]
[1737729835158,4.9e-07,105890.0,105880.0,0.52563734]
[1737729835549,4.9e-07,105890.0,105880.0,0.54863734]
[1737729835751,4.9e-07,105890.0,105880.0,0.52201606]
[1737729836540,4.9e-07,105890.0,105880.0,0.54201606]
[1737729837034,4.9e-07,105890.0,105880.0,0.51201629]
[1737729837409,4.9e-07,105890.0,105880.0,0.41201629]
[1737729837641,4.9e-07,105890.0,105880.0,0.38901629]
[1737729838052,4.049e-05,105890.0,105880.0,0.38901629]
[1737729838466,4.049e-05,105890.0,105880.0,0.39838556]
[1737729838690,4.049e-05,105890.0,105880.0,0.49838556]
[1737729839432,4.049e-05,105890.0,105880.0,0.39838556]
[1737729840229,0.000298,105920.0,105880.0,0.39838556]
[1737729840442,0.0002997,105950.0,105910.0,0.40897629]
[1737729840645,0.0002997,105950.0,105940.0,0.164589]
[1737729840859,0.0002997,105950.0,105940.0,0.23987992]
[1737729841091,0.0002997,105950.0,105940.0,0.141589]
[1737729841307,0.0002997,105950.0,105940.0,0.23988002]
[1737729841522,0.0002997,105950.0,105940.0,0.23893629]
[1737729841733,0.0002997,105950.0,105940.0,0.141589]
[1737729841938,0.0002997,105950.0,105940.0,0.23988004]
[1737729842149,0.0002997,105950.0,105940.0,0.23893629]
[1737729843210,0.0003397,105950.0,105940.0,0.23893629]
[1737729843875,0.0003397,105950.0,105940.0,0.26193629]
[1737729844089,0.0187,105990.0,105970.0,0.1]
[1737729844296,0.551647,106000.0,105990.0,0.241522]
[1737729844667,0.551647,106000.0,105990.0,0.4331409]
[1737729844940,0.551647,106000.0,105990.0,0.5917453]
[1737729845165,0.551647,106000.0,105990.0,1.0178891]
[1737729845380,0.551647,106000.0,105990.0,1.02485484]
[1737729845603,0.551647,106000.0,105990.0,0.8963311]
[1737729845826,0.551647,106000.0,105990.0,0.83164271]
[1737729846034,0.551647,106000.0,105990.0,0.53164271]
[1737729846247,0.551647,106000.0,105990.0,0.34864294]
[1737729846455,0.551647,106000.0,105990.0,0.35864271]
[1737729846905,0.551647,106000.0,105990.0,0.34864294]
[1737729847120,0.551647,106000.0,105990.0,0.38935924]
[1737729847344,0.551647,106000.0,105990.0,0.33935924]
[1737729847569,0.551647,106000.0,105990.0,0.42047424]
[1737729847786,0.551647,106000.0,105990.0,0.69115971]
[1737729848001,0.551647,106000.0,105990.0,0.85935947]
[1737729848644,0.551647,106000.0,105990.0,0.84115971]
[1737729848862,0.551647,106000.0,105990.0,1.04568847]
[1737729849067,0.551647,106000.0,105990.0,1.075003]
[1737729849278,8e-05,106020.0,106010.0,0.12999977]
[1737729849477,8e-05,106020.0,106010.0,0.51978579]
[1737729849695,8e-05,106020.0,106010.0,0.56364376]
[1737729849909,0.15411924,106050.0,106040.0,0.40145577]
[1737729850120,0.15411924,106050.0,106040.0,0.84180306]
[1737729850331,0.05982424,106050.0,106040.0,0.84180306]
[1737729850535,0.05982424,106050.0,106040.0,0.54180306]
[1737729850737,0.05982424,106050.0,106040.0,0.49880306]
[1737729850945,0.05982424,106050.0,106040.0,0.48880329]
[1737729851148,0.05982424,106050.0,106040.0,0.48929324]
[1737729851351,0.05982424,106050.0,106040.0,0.23929324]
[1737729851582,0.05987424,106050.0,106040.0,0.48929324]
[1737729851996,0.05987424,106050.0,106040.0,0.81929301]
[1737729852199,0.05987424,106050.0,106040.0,0.49929301]
[1737729852460,0.05987424,106050.0,106040.0,0.48929324]
[1737729852663,0.05987424,106050.0,106040.0,0.38929324]
[1737729852814,0.05987424,106050.0,106040.0,0.48929324]
[1737729853017,0.05987424,106050.0,106040.0,0.33929324]
[1737729853839,0.05987424,106050.0,106040.0,0.37950017]
[1737729854043,0.05987424,106050.0,106040.0,0.52950017]
[1737729854984,0.05987424,106050.0,106040.0,0.55250017]
[1737729855198,0.05987424,106050.0,106040.0,0.84229301]
[1737729855608,0.05987424,106050.0,106040.0,0.50929324]
[1737729855829,0.05987424,106050.0,106040.0,0.48929324]
[1737729856584,0.05987424,106050.0,106040.0,0.38929324]
[1737729857167,0.05987424,106050.0,106040.0,0.39865994]
[1737729857919,0.0601716,106050.0,106040.0,0.38929324]
[1737729858900,0.0601716,106050.0,106040.0,0.23929324]
[1737729859454,0.0601716,106050.0,106040.0,0.39865994]
[1737729859605,0.0601716,106050.0,106040.0,0.51865994]
[1737729859784,0.0601716,106050.0,106040.0,0.52865971]
[1737729860008,0.0551716,106050.0,106040.0,0.52865971]
[1737729860212,0.0551716,106050.0,106040.0,0.49865994]
[1737729860475,0.00029758,106060.0,106050.0,0.241442]
[1737729860703,0.00029758,106060.0,106050.0,0.48878929]
[1737729864239,0.04999758,106060.0,106050.0,0.09734729]
[1737729864438,0.04999758,106060.0,106040.0,0.00048995]
[1737729864439,0.141442,106050.0,106040.0,0.00048995]
[1737729864640,0.12949758,106060.0,106050.0,0.141442]
[1737729864851,0.12949758,106060.0,106050.0,0.23973212]
[1737729865052,0.12949758,106060.0,106050.0,0.48878929]
[1737729865443,0.12949758,106060.0,106050.0,0.23878929]
[1737729866708,0.00029758,106060.0,106050.0,0.48878929]
[1737729866915,0.0807,106080.0,106070.0,0.241416]
[1737729867122,0.0807,106080.0,106070.0,0.48876329]
[1737729867123,0.0001,106080.0,106070.0,0.48876329]
[1737729867787,0.0001,106080.0,106070.0,0.23876329]
[1737729869108,0.0815845,106100.0,106090.0,0.391389]
[1737729869327,0.0815845,106100.0,106090.0,0.48873629]
[1737729870392,0.0815845,106100.0,106090.0,0.48922624]
[1737729871025,0.0815845,106100.0,106090.0,0.38922624]
[1737729871244,0.0815845,106100.0,106090.0,0.48922624]
[1737729871450,0.0815845,106100.0,106090.0,0.38922624]
[1737729871670,0.0815845,106100.0,106090.0,0.23922624]
[1737729871895,0.3484605,106100.0,106090.0,0.00048995]
[1737729872106,0.2070845,106100.0,106090.0,0.00048995]
[1737729872321,0.2070845,106100.0,106090.0,0.14187895]
[1737729872584,0.2070845,106100.0,106090.0,0.23922624]
[1737729874279,0.2070845,106100.0,106090.0,0.38922624]
[1737729874499,0.2070845,106100.0,106090.0,0.48922624]
[1737729875573,0.0815845,106100.0,106090.0,0.48922624]
[1737729877029,1.78879806,106140.0,106130.0,0.141336]
[1737729877236,1.78879806,106140.0,106130.0,0.48962525]
[1737729877453,1.78879806,106140.0,106130.0,0.48868329]
[1737729877676,1.78879806,106140.0,106130.0,0.23868329]
[1737729878309,1.78879806,106140.0,106130.0,0.14182595]
[1737729878738,1.78879806,106140.0,106130.0,0.24011535]
[1737729878984,1.78879806,106140.0,106130.0,0.23917324]
[1737729879631,1.78879806,106140.0,106130.0,0.14182595]
[1737729879838,1.78879806,106140.0,106120.0,0.37693]
[1737729879839,0.01,106130.0,106110.0,0.0009934]
[1737729880055,0.1295,106120.0,106110.0,0.00148423]
[1737729880278,0.143682,106120.0,106110.0,0.00049083]
[1737729880488,0.37237829,106120.0,106110.0,0.00049083]
[1737729880700,0.1275,106090.0,106080.0,0.00193422]
[1737729880952,0.1275,106090.0,106080.0,0.09883061]
[1737729881158,0.13228879,106090.0,106080.0,0.23924091]
[1737729881784,0.00478879,106090.0,106080.0,0.33924091]
[1737729881968,0.00478879,106090.0,106080.0,0.38924091]
[1737729882175,0.0775,106110.0,106090.0,0.141388]
[1737729882366,0.0775,106110.0,106100.0,0.09828965]
[1737729882567,0.0775,106110.0,106080.0,0.00049162]
[1737729882773,0.0496,106090.0,106080.0,0.00161732]
[1737729883327,0.0496,106090.0,106080.0,0.00063302]
[1737729883464,0.0496,106090.0,106080.0,0.09798031]
[1737729883667,0.0496,106090.0,106080.0,0.00063302]
[1737729883868,0.1291,106090.0,106080.0,0.00063302]
[1737729884064,0.1291,106090.0,106080.0,0.09798031]
[1737729884270,0.1291,106090.0,106080.0,0.09892285]
[1737729884701,0.1291,106090.0,106080.0,0.00063302]
[1737729885162,0.23659485,106110.0,106080.0,0.28651331]
[1737729885386,0.077,106130.0,106100.0,0.141375]
[1737729885609,0.087,106130.0,106110.0,0.00094225]
[1737729885831,0.42094214,106130.0,106100.0,0.0019348]
[1737729886046,0.31359485,106130.0,106110.0,0.09734729]
[1737729886255,0.087,106130.0,106100.0,0.1433088]
[1737729886462,0.087,106130.0,106100.0,0.24065609]
[1737729886463,0.077,106130.0,106100.0,0.24065609]
[1737729886689,0.087,106130.0,106100.0,0.09833979]
[1737729886868,0.0468,106110.0,106100.0,0.0009925]
[1737729887213,0.0468,106110.0,106090.0,0.659807]
[1737729887414,0.0468,106110.0,106100.0,0.23966568]
[1737729887639,0.0468,106110.0,106100.0,0.09734729]
[1737729887844,0.0468,106110.0,106100.0,0.09828964]
[1737729888485,0.29339485,106110.0,106090.0,0.329905]
[1737729888685,0.0568,106110.0,106090.0,0.329905]
[1737729889112,1.97723606,106140.0,106110.0,0.141362]
[1737729889113,1.78879806,106140.0,106110.0,0.141362]
[1737729889287,1.78879806,106140.0,106120.0,0.28674747]
[1737729889657,1.78879806,106140.0,106120.0,0.28580529]
[1737729889870,1.78879806,106140.0,106110.0,0.1423467]
[1737729889871,0.0787,106130.0,106110.0,0.1423467]
[1737729890074,0.0787,106130.0,106110.0,0.23969399]
[1737729890278,0.0787,106130.0,106120.0,0.0009422]
[1737729890513,0.0787,106130.0,106120.0,0.00049162]
[1737729890721,0.0887,106130.0,106120.0,0.00049162]
[1737729890859,0.1381,106130.0,106120.0,0.00049162]
[1737729891887,1.78879806,106140.0,106120.0,0.00049162]
[1737729892087,1.78879806,106140.0,106130.0,0.33868329]
[1737729892293,1.78879806,106140.0,106130.0,0.48868329]
[1737729892866,1.78879806,106140.0,106130.0,0.38868329]
[1737729893082,1.78879806,106140.0,106130.0,0.23868329]
[1737729893283,1.78879806,106140.0,106130.0,0.33868329]
[1737729893520,1.78879806,106140.0,106130.0,0.23753434]
[1737729894048,1.91749806,106140.0,106130.0,0.09734729]
[1737729894264,1.91749806,106140.0,106130.0,0.09828937]
[1737729894450,1.91749806,106140.0,106120.0,0.00049162]
[1737729894651,1.91749806,106140.0,106130.0,0.08175177]
[1737729895209,1.91749806,106140.0,106130.0,0.17909906]
[1737729896248,1.78879806,106140.0,106130.0,0.17909906]
[1737729897509,1.53843236,106140.0,106130.0,0.17909906]
[1737729898246,1.53843236,106140.0,106130.0,0.48868329]
[1737729899057,1.53843236,106140.0,106130.0,0.38868329]
[1737729899265,1.53843236,106140.0,106130.0,0.48868329]
[1737729899467,1.53843236,106140.0,106130.0,0.51168329]
[1737729899873,1.53843236,106140.0,106130.0,0.48868329]
[1737729900284,1.34565967,106140.0,106130.0,0.81724438]
[1737729900499,0.01548407,106180.0,106130.0,0.81724438]
[1737729900500,0.1314,106250.0,106190.0,0.1]
[1737729900712,0.13169736,106250.0,106230.0,0.188269]
[1737729900931,0.02,106280.0,106250.0,0.56288621]
[1737729901144,0.01,106290.0,106260.0,0.00094092]
[1737729901576,0.141124,106290.0,106260.0,0.02394092]
[1737729901801,0.02,106280.0,106260.0,0.02394092]
[1737729902007,0.02,106280.0,106260.0,0.00049162]
[1737729902212,0.25659485,106270.0,106260.0,0.00049162]
[1737729902420,0.49509114,106270.0,106260.0,0.00049162]
[1737729902621,0.23659485,106270.0,106260.0,0.00049162]
[1737729902828,0.23659485,106270.0,106260.0,0.09783891]
[1737729903064,0.02,106280.0,106260.0,0.00049162]
[1737729903248,0.23659485,106270.0,106260.0,0.00049162]
[1737729903455,0.25659485,106280.0,106260.0,0.00049162]
[1737729903664,0.23659485,106280.0,106260.0,0.09877992]
[1737729903870,0.0769,106280.0,106270.0,0.12034729]
[1737729904077,0.0769,106280.0,106270.0,1.4202954]
[1737729904313,0.31349485,106280.0,106270.0,0.82847306]
[1737729904500,0.66282685,106280.0,106260.0,0.00049162]
[1737729904705,0.141149,106270.0,106260.0,0.00049162]
[1737729904909,0.141192,106240.0,106210.0,0.82906606]
[1737729905119,0.23659485,106230.0,106210.0,0.92690516]
[1737729905330,0.23659485,106230.0,106210.0,0.82955787]
[1737729905754,0.0778,106220.0,106210.0,0.82955787]
[1737729905960,0.0778,106220.0,106210.0,1.68105787]
[1737729906370,0.0778,106220.0,106210.0,1.77840516]
[1737729906576,0.23659485,106230.0,106210.0,1.77840516]
[1737729906782,0.23659485,106230.0,106220.0,0.09828859]
[1737729907009,0.31439485,106250.0,106220.0,0.09828859]
[1737729907236,0.03854827,106280.0,106220.0,0.09828859]
[1737729907237,0.23659485,106270.0,106240.0,0.00999977]
[1737729907478,0.23659485,106270.0,106250.0,0.00094095]
[1737729907479,0.24639855,106270.0,106250.0,0.00094095]
[1737729907715,0.24639855,106250.0,106240.0,0.92582035]
[1737729907950,0.24639855,106250.0,106240.0,0.82847306]
[1737729908163,0.24639855,106250.0,106240.0,0.82947206]
[1737729908387,0.24639855,106250.0,106240.0,0.82847306]
[1737729908595,0.24639855,106250.0,106220.0,0.82847306]
[1737729908596,0.55198584,106250.0,106220.0,0.82847306]
[1737729908804,0.38761455,106220.0,106210.0,0.853226]
[1737729909007,0.24639855,106220.0,106210.0,0.85371781]
[1737729909220,0.24639855,106220.0,106210.0,0.85272661]
[1737729909434,0.50496184,106220.0,106210.0,0.85272661]
[1737729909655,0.161259,106190.0,106160.0,0.82847306]
[1737729909855,0.24639855,106170.0,106160.0,0.82896502]
[1737729910070,0.38768055,106170.0,106160.0,0.00049196]
[1737729910293,0.02,106160.0,106110.0,0.82847306]
[1737729910507,0.02,106160.0,106110.0,0.09734729]
[1737729910508,0.24639855,106120.0,106110.0,0.09734729]
[1737729910716,0.24639855,106120.0,106110.0,0.00049229]
[1737729910933,0.26639855,106120.0,106110.0,0.00148099]
[1737729911139,0.40774755,106120.0,106110.0,0.00049229]
[1737729911356,0.40774755,106120.0,106080.0,0.0001414]
[1737729911357,0.161389,106090.0,106080.0,0.0001414]
[1737729911565,0.63513484,106090.0,106080.0,0.0001414]
[1737729911771,0.67366184,106090.0,106070.0,0.0215894]
[1737729911976,0.23874929,106080.0,106070.0,0.02208188]
[1737729912203,0.23874929,106080.0,106020.0,0.1]
[1737729912204,0.02,106030.0,106020.0,0.1]
[1737729912409,0.48522584,106030.0,106020.0,0.00049376]
[1737729912622,0.34374584,106030.0,106020.0,0.00049376]
[1737729912841,0.09734729,106030.0,106020.0,0.00049376]
[1737729913093,0.161464,106040.0,106020.0,0.00049376]
[1737729913271,0.09734729,106030.0,106020.0,0.00049376]
[1737729913483,0.50521484,106030.0,106020.0,0.00049376]
[1737729913692,0.141509,106000.0,105990.0,0.0001416]
[1737729913914,0.38790755,106000.0,105990.0,0.0001416]
[1737729914120,0.48525484,106000.0,105990.0,0.0001416]
[1737729914339,0.161536,105980.0,105970.0,0.0001417]
[1737729914554,0.50528184,105980.0,105970.0,0.0001417]
[1737729915446,0.50528184,105980.0,105930.0,0.02261492]
[1737729915447,0.38797055,105960.0,105930.0,0.0216711]
[1737729915653,0.141581,105950.0,105930.0,0.0216711]
[1737729915865,0.141581,105950.0,105930.0,0.0217311]
[1737729915866,0.09734729,105940.0,105930.0,0.0217311]
[1737729916087,0.09734729,105950.0,105930.0,0.0217311]
[1737729916292,0.24639855,105960.0,105930.0,0.0217311]
[1737729916507,0.34374584,105960.0,105930.0,0.0217311]
[1737729916719,0.09734729,105960.0,105930.0,0.0217311]
[1737729916963,0.38798755,105940.0,105930.0,0.0217311]
[1737729917167,0.0689,105970.0,105930.0,0.11907839]
[1737729917384,0.00049199,105960.0,105940.0,0.23948015]
[1737729917582,0.00049199,105960.0,105940.0,0.09694729]
[1737729917785,0.00049199,105960.0,105950.0,0.09734729]
[1737729917994,0.00049199,105960.0,105950.0,0.93582012]
[1737729918215,0.209899,106010.0,105950.0,1.07739312]
[1737729918422,5e-05,105960.0,105950.0,1.22754302]
[1737729918633,5e-05,105960.0,105950.0,1.32816284]
[1737729918831,5e-05,105960.0,105950.0,1.34816284]
[1737729919039,0.0476,106050.0,105980.0,0.34871377]
[1737729919251,0.09734729,106040.0,105990.0,0.23886529]
[1737729919456,0.09734729,106040.0,105980.0,0.97847306]
[1737729919457,0.141482,106020.0,105980.0,0.97847306]
[1737729919673,0.141482,106020.0,106000.0,6.822e-05]
[1737729919674,0.28601329,106010.0,106000.0,6.822e-05]
[1737729919901,0.11734729,106010.0,106000.0,6.822e-05]
[1737729920089,0.62361555,106040.0,106000.0,6.822e-05]
[1737729920298,0.02,106020.0,105990.0,0.82847306]
[1737729920500,0.09734729,106020.0,105990.0,0.82847306]
[1737729920702,0.02,106040.0,106000.0,0.0001469]
[1737729920918,0.09734729,106030.0,106000.0,0.0001469]
[1737729921122,0.11734729,106030.0,106000.0,0.1425992]
[1737729921329,0.377652,106050.0,106010.0,0.23884329]
[1737729921330,0.0676,106050.0,106010.0,0.23884329]
[1737729921537,0.16494729,106050.0,106010.0,1.06731635]
[1737729921754,0.25881429,106040.0,106000.0,0.0001469]
[1737729921968,0.09734729,106040.0,106000.0,0.00109018]
[1737729922137,0.11734729,106040.0,106000.0,0.00109018]
[1737729922460,0.25880429,106040.0,106000.0,0.00109018]
[1737729922599,0.44741229,106040.0,106000.0,0.0001469]
[1737729922810,0.02,106030.0,106000.0,0.0001469]
[1737729923055,0.02,106040.0,106000.0,0.14259826]
[1737729923397,0.0676,106050.0,106020.0,0.141481]
[1737729923517,0.16494729,106050.0,106020.0,0.96995406]
[1737729923925,0.16494729,106050.0,106020.0,0.82847306]
[1737729924352,0.076498,106060.0,106030.0,0.23975949]
[1737729924547,0.096498,106060.0,106030.0,0.09734729]
[1737729924749,0.096498,106060.0,106020.0,1.01711506]
[1737729924750,0.09734729,106050.0,106020.0,0.82847306]
[1737729924982,0.42740029,106050.0,106020.0,0.96994706]
[1737729925184,0.42740029,106050.0,106020.0,1.15858906]
[1737729925185,0.330053,106050.0,106020.0,1.15858906]
[1737729925394,0.406522,106060.0,106030.0,0.330089]
[1737729925611,0.141447,106050.0,106030.0,0.141463]
[1737729925931,0.141456,106040.0,106020.0,0.96994706]
[1737729926135,0.09734729,106030.0,106000.0,0.97012496]
[1737729926309,0.09734729,106030.0,106000.0,1.15880196]
[1737729926310,0.141484,106020.0,106000.0,1.15880196]
[1737729926547,0.14147,106030.0,106010.0,0.330153]
[1737729926957,0.141496,106010.0,106000.0,0.0001469]
[1737729927162,0.02,106040.0,106010.0,0.141496]
[1737729927365,0.23881629,106030.0,106000.0,0.1416549]
[1737729927574,0.23881629,106030.0,106010.0,0.141495]